fUSD/lending_fUSD_20250208
["ID","MTS","AMOUNT","RATE_DAILY","PERIOD"]
[352258366,1739020233408,-500.0,0.00010118,2]
[352258368,1739020233418,-500.0,0.00010118,2]
[352258370,1739020233428,-500.0,0.00010118,2]
[352258372,1739020233438,-500.0,0.00010118,2]
[352258375,1739020233447,-500.0,0.00010118,2]
[352258377,1739020233456,-500.0,0.00010118,2]
[352258379,1739020233467,-500.0,0.00010118,2]
[352258381,1739020233477,-500.0,0.00010118,2]
[352258383,1739020233486,-500.0,0.00010118,2]
[352258385,1739020233495,-1741.68,0.00010118,2]
[352258386,1739020233505,-500.0,0.00010118,2]
[352258389,1739020233515,-505.31896273,0.00010118,2]
[352258390,1739020233525,-997.59,0.00010118,2]
[352258393,1739020233535,-500.0,0.00010118,2]
[352258395,1739020233544,-500.0,0.00010118,2]
[352258397,1739020233554,-500.0,0.00010118,2]
[352258399,1739020233563,-500.0,0.00010118,2]
[352258401,1739020233572,-500.0,0.00010118,2]
[352258402,1739020233582,-500.0,0.00010118,2]
[352258404,1739020233591,-500.0,0.00010118,2]
[352258406,1739020233600,-502.16456608,0.00010118,2]
[352258408,1739020233610,-500.0,0.00010118,2]
[352258410,1739020233619,-500.0,0.00010118,2]
[352258412,1739020233628,-500.0,0.00010118,2]
[352258414,1739020233637,-501.64779158,0.00010118,2]
[352258416,1739020233647,-500.0,0.00010118,2]
[352258418,1739020233656,-500.0,0.00010118,2]
[352258420,1739020233666,-500.0,0.00010118,2]
[352258422,1739020233675,-500.0,0.00010118,2]
[352258424,1739020233684,-916.59,0.00010118,2]
[352258426,1739020233694,-500.0,0.00010118,2]
[352258428,1739020233703,-500.0,0.00010118,2]
[352258430,1739020233712,-500.0,0.00010118,2]
[352258432,1739020233722,-549.43,0.00010118,2]
[352258434,1739020233731,-500.0,0.00010118,2]
[352258436,1739020233740,-500.0,0.00010118,2]
[352258438,1739020233750,-500.48997155,0.00010118,2]
[352258440,1739020233759,-500.0,0.00010118,2]
[352258442,1739020233769,-500.0,0.00010118,2]
[352258444,1739020233778,-500.0,0.00010118,2]
[352258446,1739020233787,-500.0,0.00010118,2]
[352258448,1739020233797,-501.08355004,0.00010118,2]
[352258450,1739020233811,-500.0,0.00010118,2]
[352258452,1739020233820,-500.0,0.00010118,2]
[352258454,1739020233829,-500.0,0.00010118,2]
[352258456,1739020233839,-500.0,0.00010118,2]
[352258458,1739020233849,-623.25,0.00010118,2]
[352258460,1739020233858,-502.82538233,0.00010118,2]
[352258462,1739020233869,-500.0,0.00010118,2]
[352258464,1739020233878,-1430.21,0.00010118,2]
[352258466,1739020233889,-500.67492405,0.00010118,2]
[352258468,1739020233899,-500.17750686,0.00010118,2]
[352258470,1739020233908,-500.0,0.00010118,2]
[352258472,1739020233918,-500.0,0.00010118,2]
[352258474,1739020233928,-500.78824433,0.00010118,2]
[352258476,1739020233937,-500.0,0.00010118,2]
[352258478,1739020233946,-500.0,0.00010118,2]
[352258480,1739020233955,-500.0,0.00010118,2]
[352258482,1739020233964,-543.09109357,0.00010118,2]
[352258484,1739020233974,-375.52329846,0.00010118,2]
[352258486,1739020233983,-500.0,0.00010118,2]
[352258488,1739020233993,-741.2,0.00010118,2]
[352258490,1739020234003,-500.0,0.00010118,2]
[352258492,1739020234012,-281.09137846,0.00010118,2]
[352258494,1739020234021,-500.0,0.00010118,2]
[352258496,1739020234031,-500.0,0.00010118,2]
[352258498,1739020234041,-500.0,0.00010118,2]
[352258500,1739020234051,-500.0,0.00010118,2]
[352258502,1739020234061,-265.16090689,0.00010118,2]
[352258505,1739020234080,-235.38989739,0.00010118,2]
[352258507,1739020234090,-500.0,0.00010118,2]
[352258509,1739020234099,-500.0,0.00010118,2]
[352258511,1739020234109,-141.41010265,0.00010118,2]
[352258513,1739020234121,-358.58989735,0.00010118,2]
[352258515,1739020234130,-641.41010265,0.00010118,2]
[352258518,1739020234141,-522.68989735,0.00010118,2]
[352258520,1739020234151,-500.0,0.00010118,2]
[352258522,1739020234160,-168.18961929,0.00010118,2]
[352258633,1739020237851,-282.55999991,0.00010117,2]
[352258634,1739020237862,-503.87000009,0.00010117,2]
[352258635,1739020237872,-60.81999971,0.00010117,2]
[352258636,1739020237964,-468.54598073,0.00010117,2]
[352258637,1739020237976,-593.16401956,0.00010117,2]
[352258638,1739020237985,-1351.74,0.00010117,2]
[352258639,1739020237995,-304.679732,0.00010118,2]
[352258640,1739020238026,-27.13064871,0.00010118,2]
[352258641,1739020238036,-505.67362911,0.00010118,2]
[352258642,1739020238046,-500.0,0.00010118,2]
[352258643,1739020238055,-500.0,0.00010118,2]
[352258644,1739020238065,-500.0,0.00010118,2]
[352258645,1739020238075,-500.0,0.00010118,2]
[352258646,1739020238084,-562.63,0.00010118,2]
[352258647,1739020238094,-500.0,0.00010118,2]
[352258648,1739020238104,-500.0,0.00010118,2]
[352258649,1739020238113,-500.0,0.00010118,2]
[352258650,1739020238122,-500.93438717,0.00010118,2]
[352258651,1739020238132,-500.0,0.00010118,2]
[352258653,1739020238142,-500.0,0.00010118,2]
[352258654,1739020238151,-500.0,0.00010118,2]
[352258656,1739020238160,-500.0,0.00010118,2]
[352258658,1739020238170,-553.30368913,0.00010118,2]
[352258660,1739020238179,-500.0,0.00010118,2]
[352258662,1739020238188,-507.26528166,0.00010118,2]
[352258664,1739020238198,-502.51318735,0.00010118,2]
[352258666,1739020238207,-500.0,0.00010118,2]
[352258668,1739020238217,-500.0,0.00010118,2]
[352258670,1739020238226,-500.58332253,0.00010118,2]
[352258672,1739020238235,-500.0,0.00010118,2]
[352258674,1739020238245,-500.0,0.00010118,2]
[352258676,1739020238254,-500.0,0.00010118,2]
[352258678,1739020238263,-500.0,0.00010118,2]
[352258680,1739020238272,-500.0,0.00010118,2]
[352258682,1739020238281,-500.0,0.00010118,2]
[352258684,1739020238290,-500.0,0.00010118,2]
[352258686,1739020238300,-501.23163644,0.00010118,2]
[352258688,1739020238309,-500.0,0.00010118,2]
[352258689,1739020238319,-500.0,0.00010118,2]
[352258692,1739020238328,-500.0,0.00010118,2]
[352258693,1739020238338,-508.31,0.00010118,2]
[352258695,1739020238347,-500.0,0.00010118,2]
[352258697,1739020238356,-500.0,0.00010118,2]
[352258699,1739020238366,-500.0,0.00010118,2]
[352258701,1739020238375,-500.0,0.00010118,2]
[352258704,1739020238385,-500.0,0.00010118,2]
[352258706,1739020238394,-500.0,0.00010118,2]
[352258707,1739020238403,-500.0,0.00010118,2]
[352258709,1739020238412,-500.0,0.00010118,2]
[352258711,1739020238422,-500.0,0.00010118,2]
[352258713,1739020238431,-500.0,0.00010118,2]
[352258715,1739020238441,-500.0,0.00010118,2]
[352258717,1739020238450,-500.0,0.00010118,2]
[352258719,1739020238459,-594.56,0.00010118,2]
[352258721,1739020238468,-500.0,0.00010118,2]
[352258723,1739020238477,-500.0,0.00010118,2]
[352258725,1739020238486,-562.87,0.00010118,2]
[352258727,1739020238495,-522.4,0.00010118,2]
[352258729,1739020238504,-519.78655906,0.00010118,2]
[352258731,1739020238513,-500.98075691,0.00010118,2]
[352258733,1739020238522,-675.82,0.00010118,2]
[352258735,1739020238532,-500.0,0.00010118,2]
[352258737,1739020238541,-500.0,0.00010118,2]
[352258739,1739020238550,-500.62812355,0.00010118,2]
[352258741,1739020238559,-651.33,0.00010118,2]
[352258743,1739020238568,-506.69909048,0.00010118,2]
[352258745,1739020238579,-500.0,0.00010118,2]
[352258747,1739020238587,-500.0,0.00010118,2]
[352258749,1739020238596,-501.3201619,0.00010118,2]
[352258751,1739020238605,-500.0,0.00010118,2]
[352258753,1739020238614,-1381.39,0.00010118,2]
[352258755,1739020238623,-500.0,0.00010118,2]
[352258757,1739020238632,-500.0,0.00010118,2]
[352258759,1739020238641,-500.0,0.00010118,2]
[352258761,1739020238650,-500.0,0.00010118,2]
[352258763,1739020238660,-500.0,0.00010118,2]
[352258765,1739020238669,-500.68970946,0.00010118,2]
[352258767,1739020238678,-500.0,0.00010118,2]
[352258768,1739020238687,-500.0,0.00010118,2]
[352258770,1739020238696,-501.41816721,0.00010118,2]
[352258772,1739020238706,-500.0,0.00010118,2]
[352258775,1739020238716,-500.0,0.00010118,2]
[352258777,1739020238725,-500.0,0.00010118,2]
[352258779,1739020238735,-500.0,0.00010118,2]
[352258781,1739020238743,-500.0,0.00010118,2]
[352258783,1739020238753,-500.0,0.00010118,2]
[352258785,1739020238762,-500.0,0.00010118,2]
[352258786,1739020238771,-500.0,0.00010118,2]
[352258788,1739020238781,-500.0,0.00010118,2]
[352258790,1739020238790,-500.0,0.00010118,2]
[352258792,1739020238799,-983.11,0.00010118,2]
[352258794,1739020238811,-500.0,0.00010118,2]
[352258796,1739020238820,-500.0,0.00010118,2]
[352258798,1739020238828,-501.27523129,0.00010118,2]
[352258800,1739020238838,-500.0,0.00010118,2]
[352258802,1739020238847,-500.0,0.00010118,2]
[352258804,1739020238857,-500.0,0.00010118,2]
[352258806,1739020238867,-500.72218395,0.00010118,2]
[352258808,1739020238876,-550.73,0.00010118,2]
[352258810,1739020238887,-500.0,0.00010118,2]
[352258812,1739020238896,-500.0,0.00010118,2]
[352258814,1739020238905,-500.0,0.00010118,2]
[352258816,1739020238914,-490.89016874,0.00010118,2]
[352258818,1739020238923,-500.0,0.00010118,2]
[352258820,1739020238932,-500.0,0.00010118,2]
[352258822,1739020238941,-510.98962397,0.00010118,2]
[352258824,1739020238950,-500.0,0.00010118,2]
[352258826,1739020238959,-500.0,0.00010118,2]
[352258828,1739020238968,-500.0,0.00010118,2]
[352258830,1739020238977,-500.0,0.00010118,2]
[352258832,1739020238986,-500.0,0.00010118,2]
[352258834,1739020238995,-517.98,0.00010118,2]
[352258836,1739020239005,-500.0,0.00010118,2]
[352258838,1739020239015,-500.0,0.00010118,2]
[352258840,1739020239024,-500.0,0.00010118,2]
[352258842,1739020239033,-500.0,0.00010118,2]
[352258844,1739020239042,-500.0,0.00010118,2]
[352258846,1739020239051,-500.0,0.00010118,2]
[352258848,1739020239060,-500.0,0.00010118,2]
[352258850,1739020239070,-500.0,0.00010118,2]
[352258852,1739020239079,-500.0,0.00010118,2]
[352258854,1739020239088,-500.85831908,0.00010118,2]
[352258856,1739020239097,-500.0,0.00010118,2]
[352258858,1739020239107,-500.0,0.00010118,2]
[352258860,1739020239116,-500.0,0.00010118,2]
[352258862,1739020239125,-500.0,0.00010118,2]
[352258864,1739020239134,-500.0,0.00010118,2]
[352258866,1739020239143,-500.0,0.00010118,2]
[352258868,1739020239152,-500.0,0.00010118,2]
[352258870,1739020239161,-500.0,0.00010118,2]
[352258872,1739020239170,-788.09,0.00010118,2]
[352258874,1739020239179,-500.0,0.00010118,2]
[352258876,1739020239188,-502.69819417,0.00010118,2]
[352258878,1739020239197,-500.77995807,0.00010118,2]
[352258880,1739020239207,-1087.6,0.00010118,2]
[352258882,1739020239215,-500.0,0.00010118,2]
[352258884,1739020239224,-500.0,0.00010118,2]
[352258886,1739020239233,-500.0,0.00010118,2]
[352258888,1739020239242,-500.0,0.00010118,2]
[352258890,1739020239251,-500.0,0.00010118,2]
[352258892,1739020239260,-501.09892695,0.00010118,2]
[352258894,1739020239269,-1302.96,0.00010118,2]
[352258896,1739020239278,-500.0,0.00010118,2]
[352258898,1739020239287,-1217.75,0.00010118,2]
[352258899,1739020239297,-500.0,0.00010118,2]
[352258902,1739020239306,-500.0,0.00010118,2]
[352258903,1739020239315,-500.0,0.00010118,2]
[352258906,1739020239324,-500.0,0.00010118,2]
[352258908,1739020239334,-500.0,0.00010118,2]
[352258910,1739020239343,-500.0,0.00010118,2]
[352258912,1739020239352,-500.0,0.00010118,2]
[352258913,1739020239361,-500.0,0.00010118,2]
[352258915,1739020239371,-500.0,0.00010118,2]
[352258917,1739020239380,-524.98304128,0.00010118,2]
[352258919,1739020239389,-500.0,0.00010118,2]
[352258921,1739020239398,-500.0,0.00010118,2]
[352258922,1739020239407,-500.0,0.00010118,2]
[352258923,1739020239417,-500.0,0.00010118,2]
[352258925,1739020239427,-501.56899145,0.00010118,2]
[352258927,1739020239436,-500.0,0.00010118,2]
[352258929,1739020239445,-500.0,0.00010118,2]
[352258931,1739020239454,-500.0,0.00010118,2]
[352258933,1739020239463,-500.0,0.00010118,2]
[352258935,1739020239473,-500.0,0.00010118,2]
[352258937,1739020239482,-500.0,0.00010118,2]
[352258939,1739020239492,-500.0,0.00010118,2]
[352258941,1739020239502,-500.0,0.00010118,2]
[352258943,1739020239511,-500.0,0.00010118,2]
[352258945,1739020239521,-500.0,0.00010118,2]
[352258947,1739020239531,-500.0,0.00010118,2]
[352258949,1739020239541,-500.0,0.00010118,2]
[352258951,1739020239550,-500.46274185,0.00010118,2]
[352258953,1739020239563,-500.0,0.00010118,2]
[352258955,1739020239573,-503.44331165,0.00010118,2]
[352258956,1739020239583,-500.0,0.00010118,2]
[352258958,1739020239592,-500.0,0.00010118,2]
[352258960,1739020239602,-500.0,0.00010118,2]
[352258962,1739020239611,-500.0,0.00010118,2]
[352258964,1739020239620,-501.26060768,0.00010118,2]
[352258966,1739020239629,-520.28,0.00010118,2]
[352258968,1739020239639,-500.0,0.00010118,2]
[352258970,1739020239647,-500.0,0.00010118,2]
[352258972,1739020239656,-500.0,0.00010118,2]
[352258974,1739020239665,-1271.03,0.00010118,2]
[352258976,1739020239674,-501.70697991,0.00010118,2]
[352258978,1739020239683,-500.0,0.00010118,2]
[352258980,1739020239692,-500.0,0.00010118,2]
[352258982,1739020239701,-500.0,0.00010118,2]
[352258984,1739020239710,-500.0,0.00010118,2]
[352258986,1739020239720,-500.0,0.00010118,2]
[352258989,1739020239729,-500.0,0.00010118,2]
[352258992,1739020239738,-500.0,0.00010118,2]
[352258994,1739020239747,-500.0,0.00010118,2]
[352258996,1739020239756,-504.57420618,0.00010118,2]
[352258998,1739020239766,-500.0,0.00010118,2]
[352259000,1739020239774,-500.0,0.00010118,2]
[352259002,1739020239784,-501.38208015,0.00010118,2]
[352259004,1739020239794,-500.60596394,0.00010118,2]
[352259005,1739020239804,-500.0,0.00010118,2]
[352259006,1739020239817,-500.0,0.00010118,2]
[352259007,1739020239827,-886.29,0.00010118,2]
[352259008,1739020239836,-500.0,0.00010118,2]
[352259009,1739020239846,-500.0,0.00010118,2]
[352259010,1739020239857,-500.0,0.00010118,2]
[352259011,1739020239866,-500.0,0.00010118,2]
[352259012,1739020239876,-500.0,0.00010118,2]
[352259013,1739020239887,-500.0,0.00010118,2]
[352259014,1739020239897,-500.0,0.00010118,2]
[352259015,1739020239906,-500.0,0.00010118,2]
[352259016,1739020239915,-583.63,0.00010118,2]
[352259017,1739020239925,-500.0,0.00010118,2]
[352259019,1739020239934,-502.74216436,0.00010118,2]
[352259020,1739020239944,-1332.49,0.00010118,2]
[352259022,1739020239953,-500.24643036,0.00010118,2]
[352259024,1739020239962,-500.0,0.00010118,2]
[352259026,1739020239971,-500.56497774,0.00010118,2]
[352259028,1739020239981,-500.92044065,0.00010118,2]
[352259030,1739020239990,-501.09823119,0.00010118,2]
[352259032,1739020240000,-500.0,0.00010118,2]
[352259034,1739020240010,-500.0,0.00010118,2]
[352259036,1739020240020,-497.14512163,0.00010118,2]
[352259038,1739020240029,-727.59,0.00010118,2]
[352259040,1739020240039,-500.0,0.00010118,2]
[352259042,1739020240050,-500.0,0.00010118,2]
[352259044,1739020240060,-616.13920282,0.00010118,2]
[352259046,1739020240069,-500.0,0.00010118,2]
[352259048,1739020240078,-557.29,0.00010118,2]
[352259050,1739020240087,-500.0,0.00010118,2]
[352259052,1739020240097,-500.0,0.00010118,2]
[352259054,1739020240106,-500.0,0.00010118,2]
[352259056,1739020240115,-500.0,0.00010118,2]
[352259058,1739020240124,-500.0,0.00010118,2]
[352259060,1739020240134,-500.0,0.00010118,2]
[352259062,1739020240143,-500.0,0.00010118,2]
[352259064,1739020240153,-500.0,0.00010118,2]
[352259066,1739020240162,-977.44,0.00010118,2]
[352259068,1739020240172,-500.0,0.00010118,2]
[352259070,1739020240182,-500.0,0.00010118,2]
[352259072,1739020240191,-500.0,0.00010118,2]
[352259074,1739020240201,-500.0,0.00010118,2]
[352259076,1739020240210,-500.0,0.00010118,2]
[352259078,1739020240220,-500.0,0.00010118,2]
[352259080,1739020240229,-502.58005114,0.00010118,2]
[352259082,1739020240239,-500.0,0.00010118,2]
[352259084,1739020240248,-1335.82,0.00010118,2]
[352259086,1739020240258,-500.0,0.00010118,2]
[352259088,1739020240268,-500.0,0.00010118,2]
[352259090,1739020240277,-500.0,0.00010118,2]
[352259092,1739020240294,-501.3998677,0.00010118,2]
[352259094,1739020240304,-500.0,0.00010118,2]
[352259096,1739020240313,-500.0,0.00010118,2]
[352259098,1739020240322,-500.0,0.00010118,2]
[352259100,1739020240332,-500.0,0.00010118,2]
[352259102,1739020240341,-504.41542975,0.00010118,2]
[352259104,1739020240351,-500.0,0.00010118,2]
[352259106,1739020240360,-500.0,0.00010118,2]
[352259108,1739020240369,-500.0,0.00010118,2]
[352259110,1739020240379,-500.0,0.00010118,2]
[352259112,1739020240388,-500.0,0.00010118,2]
[352259114,1739020240397,-500.0,0.00010118,2]
[352259116,1739020240406,-500.0,0.00010118,2]
[352259118,1739020240416,-500.0,0.00010118,2]
[352259120,1739020240427,-526.78,0.00010118,2]
[352259122,1739020240436,-500.0,0.00010118,2]
[352259124,1739020240445,-501.03626676,0.00010118,2]
[352259126,1739020240454,-340.35374441,0.00010118,2]
[352259128,1739020240465,-500.0,0.00010118,2]
[352259130,1739020240474,-230.47516672,0.00010118,2]
[352259132,1739020240483,-500.0,0.00010118,2]
[352259134,1739020240494,-500.0,0.00010118,2]
[352259136,1739020240507,-1098.45,0.00010118,2]
[352259138,1739020240517,-504.39125483,0.00010118,2]
[352259165,1739020240752,-500.28258651,0.00010118,2]
[352259167,1739020240768,-500.0,0.00010118,2]
[352259169,1739020240777,-516.43662179,0.00010118,2]
[352259171,1739020240786,-500.0,0.00010118,2]
[352259173,1739020240797,-500.0,0.00010118,2]
[352259175,1739020240807,-500.0,0.00010118,2]
[352259177,1739020240818,-500.0,0.00010118,2]
[352259179,1739020240828,-549.34,0.00010118,2]
[352259181,1739020240837,-544.67,0.00010118,2]
[352259183,1739020240847,-500.0,0.00010118,2]
[352259185,1739020240856,-500.0,0.00010118,2]
[352259187,1739020240865,-500.0,0.00010118,2]
[352259189,1739020240874,-571.03,0.00010118,2]
[352259191,1739020240884,-500.0,0.00010118,2]
[352259193,1739020240893,-500.0,0.00010118,2]
[352259195,1739020240903,-500.0,0.00010118,2]
[352259197,1739020240913,-500.0,0.00010118,2]
[352259199,1739020240922,-500.0,0.00010118,2]
[352259201,1739020240931,-500.0,0.00010118,2]
[352259203,1739020240940,-901.64,0.00010118,2]
[352259205,1739020240949,-500.0,0.00010118,2]
[352259207,1739020240959,-500.0,0.00010118,2]
[352259209,1739020240968,-502.05536226,0.00010118,2]
[352259211,1739020240978,-500.0,0.00010118,2]
[352259213,1739020240988,-500.0,0.00010118,2]
[352259215,1739020240997,-500.0,0.00010118,2]
[352259217,1739020241006,-500.0,0.00010118,2]
[352259219,1739020241015,-500.0,0.00010118,2]
[352259221,1739020241025,-500.32855279,0.00010118,2]
[352259223,1739020241033,-500.0,0.00010118,2]
[352259225,1739020241042,-500.0,0.00010118,2]
[352259227,1739020241051,-500.0,0.00010118,2]
[352259229,1739020241060,-500.0,0.00010118,2]
[352259231,1739020241069,-672.29,0.00010118,2]
[352259233,1739020241079,-500.0,0.00010118,2]
[352259235,1739020241087,-500.0,0.00010118,2]
[352259237,1739020241096,-500.0,0.00010118,2]
[352259238,1739020241105,-560.41,0.00010118,2]
[352259240,1739020241114,-500.63909848,0.00010118,2]
[352259242,1739020241123,-500.0,0.00010118,2]
[352259244,1739020241132,-500.0,0.00010118,2]
[352259246,1739020241141,-581.63,0.00010118,2]
[352259248,1739020241150,-500.0,0.00010118,2]
[352259250,1739020241159,-500.0,0.00010118,2]
[352259252,1739020241168,-551.18,0.00010118,2]
[352259254,1739020241177,-500.78510528,0.00010118,2]
[352259256,1739020241187,-574.81433966,0.00010118,2]
[352259258,1739020241196,-500.0,0.00010118,2]
[352259260,1739020241206,-500.57841537,0.00010118,2]
[352259262,1739020241215,-500.0,0.00010118,2]
[352259264,1739020241224,-500.0,0.00010118,2]
[352259266,1739020241233,-511.63,0.00010118,2]
[352259269,1739020241243,-500.0,0.00010118,2]
[352259271,1739020241252,-1312.13,0.00010118,2]
[352259273,1739020241261,-500.36715619,0.00010118,2]
[352259275,1739020241271,-581.18,0.00010118,2]
[352259277,1739020241280,-500.0,0.00010118,2]
[352259279,1739020241289,-500.0,0.00010118,2]
[352259280,1739020241299,-500.0,0.00010118,2]
[352259282,1739020241308,-500.0,0.00010118,2]
[352259284,1739020241317,-500.0,0.00010118,2]
[352259287,1739020241327,-500.0,0.00010118,2]
[352259289,1739020241336,-500.0,0.00010118,2]
[352259291,1739020241346,-501.07668896,0.00010118,2]
[352259293,1739020241355,-500.0,0.00010118,2]
[352259295,1739020241364,-500.0,0.00010118,2]
[352259297,1739020241373,-500.0,0.00010118,2]
[352259299,1739020241382,-500.0,0.00010118,2]
[352259301,1739020241391,-1103.92,0.00010118,2]
[352259303,1739020241401,-500.0,0.00010118,2]
[352259305,1739020241410,-500.0,0.00010118,2]
[352259307,1739020241419,-500.0,0.00010118,2]
[352259309,1739020241430,-500.0,0.00010118,2]
[352259311,1739020241439,-501.60548398,0.00010118,2]
[352259312,1739020241449,-500.3623009,0.00010118,2]
[352259314,1739020241459,-500.0,0.00010118,2]
[352259316,1739020241468,-500.0,0.00010118,2]
[352259318,1739020241477,-500.0,0.00010118,2]
[352259320,1739020241487,-500.0,0.00010118,2]
[352259322,1739020241496,-500.0,0.00010118,2]
[352259324,1739020241505,-500.0,0.00010118,2]
[352259326,1739020241514,-501.11340561,0.00010118,2]
[352259328,1739020241523,-500.0,0.00010118,2]
[352259330,1739020241532,-500.70843876,0.00010118,2]
[352259332,1739020241542,-500.0,0.00010118,2]
[352259334,1739020241552,-500.0,0.00010118,2]
[352259336,1739020241561,-500.0,0.00010118,2]
[352259338,1739020241571,-1044.81,0.00010118,2]
[352259340,1739020241587,-483.91861996,0.00010118,2]
[352259342,1739020241599,-500.0,0.00010118,2]
[352259344,1739020241618,-500.58529884,0.00010118,2]
[352259346,1739020241628,-500.0,0.00010118,2]
[352259348,1739020241638,-500.0,0.00010118,2]
[352259351,1739020241648,-500.0,0.00010118,2]
[352259352,1739020241658,-504.806347,0.00010118,2]
[352259355,1739020241668,-630.95,0.00010118,2]
[352259357,1739020241677,-500.0,0.00010118,2]
[352259359,1739020241687,-500.0,0.00010118,2]
[352259361,1739020241697,-500.0,0.00010118,2]
[352259363,1739020241708,-500.73944449,0.00010118,2]
[352259365,1739020241717,-502.28745517,0.00010118,2]
[352259367,1739020241727,-501.88328729,0.00010118,2]
[352259369,1739020241737,-502.99570006,0.00010118,2]
[352259371,1739020241747,-500.0,0.00010118,2]
[352259373,1739020241756,-500.0,0.00010118,2]
[352259374,1739020241765,-500.0,0.00010118,2]
[352259377,1739020241775,-633.64446222,0.00010118,2]
[352259379,1739020241785,-500.0,0.00010118,2]
[352259381,1739020241794,-605.64,0.00010118,2]
[352259383,1739020241804,-500.59654853,0.00010118,2]
[352259385,1739020241817,-162.20769704,0.00010118,2]
[352259387,1739020241825,-500.0,0.00010118,2]
[352259389,1739020241835,-500.0,0.00010118,2]
[352259391,1739020241844,-1097.71,0.00010118,2]
[352259392,1739020241853,-500.0,0.00010118,2]
[352259394,1739020241862,-500.0,0.00010118,2]
[352259396,1739020241871,-1112.79,0.00010118,2]
[352259398,1739020241882,-501.33829561,0.00010118,2]
[352259400,1739020241892,-501.96399597,0.00010118,2]
[352259403,1739020241902,-500.0,0.00010118,2]
[352259405,1739020241911,-500.0,0.00010118,2]
[352259407,1739020241920,-502.02340601,0.00010118,2]
[352259409,1739020241929,-500.0,0.00010118,2]
[352259411,1739020241939,-504.78272825,0.00010118,2]
[352259413,1739020241950,-500.0,0.00010118,2]
[352259414,1739020241961,-500.0,0.00010118,2]
[352259416,1739020241978,-504.54190108,0.00010118,2]
[352259418,1739020241987,-500.0,0.00010118,2]
[352259420,1739020241997,-500.0,0.00010118,2]
[352259423,1739020242006,-524.13,0.00010118,2]
[352259425,1739020242016,-500.0,0.00010118,2]
[352259426,1739020242026,-566.67796513,0.00010118,2]
[352259428,1739020242035,-500.0,0.00010118,2]
[352259430,1739020242045,-500.0,0.00010118,2]
[352259433,1739020242055,-500.0,0.00010118,2]
[352259434,1739020242064,-500.0,0.00010118,2]
[352259436,1739020242074,-500.0,0.00010118,2]
[352259438,1739020242083,-500.0,0.00010118,2]
[352259441,1739020242094,-500.0,0.00010118,2]
[352259443,1739020242103,-500.0,0.00010118,2]
[352259444,1739020242112,-500.4154463,0.00010118,2]
[352259447,1739020242122,-500.0,0.00010118,2]
[352259448,1739020242131,-500.0,0.00010118,2]
[352259451,1739020242141,-500.0,0.00010118,2]
[352259452,1739020242150,-501.91156782,0.00010118,2]
[352259454,1739020242159,-564.53,0.00010118,2]
[352259456,1739020242168,-607.74069749,0.00010118,2]
[352259459,1739020242178,-500.0,0.00010118,2]
[352259460,1739020242187,-500.0,0.00010118,2]
[352259462,1739020242197,-500.0,0.00010118,2]